[Event "*** Titled Tuesday Blitz"]
[Site "Chess.com"]
[Date "2018.10.02"]
[Round "2"]
[White "EmreDedebas"]
[Black "StoreySniper"]
[Result "1-0"]
[WhiteElo "2402"]
[BlackElo "2420"]
[TimeControl "180+2"]
[EndTime "13:24:35 PDT"]
[Termination "EmreDedebas won by resignation"]

1. d4 {[%clk 0:03:01.9]} 1... g6 {[%clk 0:02:56.6]} 2. Nf3 {[%clk 0:03:02.9]}
2... Bg7 {[%clk 0:02:56.6]} 3. c4 {[%clk 0:03:04.5]} 3... c5 {[%clk 0:02:49.1]}
4. d5 {[%clk 0:03:05.5]} 4... e5 {[%clk 0:02:47.1]} 5. Nc3 {[%clk 0:02:58.8]}
5... d6 {[%clk 0:02:48]} 6. e4 {[%clk 0:02:55.1]} 6... Nd7 {[%clk 0:02:48.1]} 7.
Bd3 {[%clk 0:02:55.4]} 7... Ngf6 {[%clk 0:02:48.6]} 8. h3 {[%clk 0:02:51]} 8...
Nh5 {[%clk 0:02:48.1]} 9. Be3 {[%clk 0:02:47.8]} 9... Nf4 {[%clk 0:02:47.5]} 10.
Bf1 {[%clk 0:02:48.6]} 10... Qb6 {[%clk 0:02:40.2]} 11. Qc2 {[%clk 0:02:44.2]}
11... h6 {[%clk 0:02:29.8]} 12. g3 {[%clk 0:02:43.4]} 12... Nh5 {[%clk
0:02:29.6]} 13. Be2 {[%clk 0:02:43.2]} 13... g5 {[%clk 0:02:19.5]} 14. Nd2
{[%clk 0:02:36.7]} 14... Nf4 {[%clk 0:02:13.7]} 15. Bf1 {[%clk 0:02:32.7]} 15...
Nf6 {[%clk 0:02:07.3]} 16. a3 {[%clk 0:02:13]} 16... Bd7 {[%clk 0:02:01.9]} 17.
b4 {[%clk 0:02:12.3]} 17... Qc7 {[%clk 0:01:53]} 18. bxc5 {[%clk 0:02:10.2]}
18... dxc5 {[%clk 0:01:54.1]} 19. Nb3 {[%clk 0:02:11.7]} 19... b6 {[%clk
0:01:51.8]} 20. gxf4 {[%clk 0:02:08.6]} 20... exf4 {[%clk 0:01:52.8]} 21. Bc1
{[%clk 0:02:07]} 21... O-O {[%clk 0:01:52]} 22. Bb2 {[%clk 0:02:07.8]} 22...
Nxe4 {[%clk 0:01:44.7]} 23. Nxe4 {[%clk 0:02:07.2]} 23... Bxb2 {[%clk
0:01:45.4]} 24. Qxb2 {[%clk 0:02:08.7]} 24... Rae8 {[%clk 0:01:46.2]} 25. f3
{[%clk 0:02:06.5]} 25... f5 {[%clk 0:01:47.1]} 26. Bd3 {[%clk 0:02:07.7]} 26...
fxe4 {[%clk 0:01:47.1]} 27. Bxe4 {[%clk 0:02:09.6]} 27... Bf5 {[%clk 0:01:39.5]}
28. Nd2 {[%clk 0:01:55.5]} 28... Qh7 {[%clk 0:01:20.3]} 29. O-O-O {[%clk
0:01:52]} 29... b5 {[%clk 0:01:13.8]} 30. cxb5 {[%clk 0:01:46.1]} 30... c4
{[%clk 0:01:12.9]} 31. Qc3 {[%clk 0:01:44.9]} 31... a6 {[%clk 0:01:10.1]} 32. d6
{[%clk 0:01:44.6]} 32... axb5 {[%clk 0:00:52.8]} 33. Bd5+ {[%clk 0:01:44.2]}
33... Be6 {[%clk 0:00:53.8]} 34. Bxe6+ {[%clk 0:01:44.3]} 34... Rxe6 {[%clk
0:00:54.8]} 35. Ne4 {[%clk 0:01:45.8]} 35... b4 {[%clk 0:00:38.8]} 36. axb4
{[%clk 0:01:38.5]} 36... Qa7 {[%clk 0:00:37.8]} 37. d7 {[%clk 0:01:19.1]} 37...
Rd8 {[%clk 0:00:34.9]} 38. Rhe1 {[%clk 0:01:10.1]} 38... Ra6 {[%clk 0:00:30.7]}
39. Kb1 {[%clk 0:00:21.8]} 39... Ra3 {[%clk 0:00:20.6]} 40. Qxc4+ {[%clk
0:00:23.2]} 40... Kh7 {[%clk 0:00:17.6]} 41. Qf7+ {[%clk 0:00:23.3]} 41... Kh8
{[%clk 0:00:18.5]} 42. Qf6+ {[%clk 0:00:08.5]} 42... Kh7 {[%clk 0:00:19.7]} 43.
Qf7+ {[%clk 0:00:09.5]} 43... Kh8 {[%clk 0:00:20.9]} 44. Nf6 {[%clk 0:00:10.8]}
44... Ra1+ {[%clk 0:00:20.3]} 45. Kc2 {[%clk 0:00:12.3]} 45... Qa4+ {[%clk
0:00:20.5]} 46. Qb3 {[%clk 0:00:08.9]} 46... Ra2+ {[%clk 0:00:19.5]} 47. Kc3
{[%clk 0:00:10.4]} 47... Qc6+ {[%clk 0:00:20.8]} 48. Kd3 {[%clk 0:00:04.9]}
48... Rxd7+ {[%clk 0:00:18.2]} 49. Nxd7 {[%clk 0:00:06.8]} 49... Qxd7+ {[%clk
0:00:18.4]} 50. Ke4 {[%clk 0:00:08.3]} 50... Qe8+ {[%clk 0:00:16.7]} 51. Kf5
{[%clk 0:00:09]} 51... Qc8+ {[%clk 0:00:15.9]} 52. Qe6 {[%clk 0:00:09.3]} 52...
Qc2+ {[%clk 0:00:15.1]} 53. Qe4 {[%clk 0:00:08.6]} 53... Qc8+ {[%clk 0:00:15.5]}
54. Qe6 {[%clk 0:00:10.2]} 54... Qc2+ {[%clk 0:00:15.7]} 55. Re4 {[%clk
0:00:11.8]} 55... Ra8 {[%clk 0:00:09.9]} 56. Qxh6+ {[%clk 0:00:11.2]} 56... Kg8
{[%clk 0:00:10.8]} 57. Rd6 {[%clk 0:00:03.9]} 57... Rf8+ {[%clk 0:00:10.9]} 58.
Rf6 {[%clk 0:00:05.5]} 58... Qc8+ {[%clk 0:00:10.9]} 59. Kxg5 {[%clk 0:00:06.8]}
59... Qf5+ {[%clk 0:00:08.9]} 60. Kxf5 {[%clk 0:00:07.7]} 60... Rxf6+ {[%clk
0:00:10.4]} 61. Qxf6 {[%clk 0:00:07.9]} 61... Kh7 {[%clk 0:00:10.9]} 62. Re7+
{[%clk 0:00:09.5]} 1-0

[Event "*** Titled Tuesday Blitz"]
[Site "Chess.com"]
[Date "2018.10.02"]
[Round "2"]
[White "Antifish7"]
[Black "ChessicallyInclined"]
[Result "1/2-1/2"]
[WhiteElo "2526"]
[BlackElo "2413"]
[TimeControl "180+2"]
[EndTime "13:24:42 PDT"]
[Termination "Game drawn by agreement"]

1. d4 {[%clk 0:03:01.9]} 1... d5 {[%clk 0:02:59.9]} 2. c4 {[%clk 0:03:02.6]}
2... e6 {[%clk 0:03:00.9]} 3. Nf3 {[%clk 0:03:03.8]} 3... Nf6 {[%clk 0:03:02]}
4. Nc3 {[%clk 0:03:05.1]} 4... Be7 {[%clk 0:03:01.9]} 5. Bg5 {[%clk 0:03:06.1]}
5... Nbd7 {[%clk 0:03:00.8]} 6. e3 {[%clk 0:03:07]} 6... h6 {[%clk 0:03:00.7]}
7. Bh4 {[%clk 0:03:07.1]} 7... O-O {[%clk 0:03:02.3]} 8. Rc1 {[%clk 0:03:06.9]}
8... c5 {[%clk 0:03:03.1]} 9. cxd5 {[%clk 0:03:06.4]} 9... Nxd5 {[%clk
0:03:04.2]} 10. Bg3 {[%clk 0:03:06]} 10... cxd4 {[%clk 0:02:52.3]} 11. Nxd5
{[%clk 0:03:05.4]} 11... Qa5+ {[%clk 0:02:46.5]} 12. Nc3 {[%clk 0:02:19.7]}
12... dxc3 {[%clk 0:02:40.6]} 13. bxc3 {[%clk 0:02:21.6]} 13... Bf6 {[%clk
0:02:17.6]} 14. Nd4 {[%clk 0:02:18.2]} 14... Nc5 {[%clk 0:02:06.7]} 15. Be2
{[%clk 0:02:08.5]} 15... Rd8 {[%clk 0:02:04.1]} 16. Qc2 {[%clk 0:01:57.6]} 16...
Bxd4 {[%clk 0:01:31.5]} 17. exd4 {[%clk 0:01:59.5]} 17... Rxd4 {[%clk
0:01:32.5]} 18. O-O {[%clk 0:02:00]} 18... Rd8 {[%clk 0:01:32.1]} 19. Bf3 {[%clk
0:01:51.4]} 19... Bd7 {[%clk 0:01:28.8]} 20. Bh4 {[%clk 0:01:26.8]} 20... Ba4
{[%clk 0:01:16.3]} 21. Bxd8 {[%clk 0:01:24.3]} 21... Rxd8 {[%clk 0:01:10.5]} 22.
Qb1 {[%clk 0:01:15.3]} 22... Qc7 {[%clk 0:01:01.2]} 23. Qb4 {[%clk 0:01:06.6]}
23... b6 {[%clk 0:00:59.8]} 24. Rb1 {[%clk 0:00:52.6]} 24... Bc2 {[%clk
0:00:52]} 25. Ra1 {[%clk 0:00:50.1]} 25... Nd3 {[%clk 0:00:47.2]} 26. Qa3 {[%clk
0:00:48.2]} 26... Ne5 {[%clk 0:00:45.4]} 27. Bd1 {[%clk 0:00:44.9]} 27... Bd3
{[%clk 0:00:34.2]} 28. Re1 {[%clk 0:00:45.9]} 28... Nc4 {[%clk 0:00:34.8]} 29.
Qc1 {[%clk 0:00:41]} 29... e5 {[%clk 0:00:27.4]} 30. Bb3 {[%clk 0:00:34.1]}
30... b5 {[%clk 0:00:26.3]} 31. a4 {[%clk 0:00:32.2]} 31... a6 {[%clk 0:00:26]}
32. axb5 {[%clk 0:00:32.5]} 32... axb5 {[%clk 0:00:27.9]} 33. h3 {[%clk
0:00:32.7]} 33... e4 {[%clk 0:00:26.7]} 34. Bxc4 {[%clk 0:00:30.6]} 34... bxc4
{[%clk 0:00:26.5]} 35. Qe3 {[%clk 0:00:31.7]} 35... Qe5 {[%clk 0:00:25.9]} 36.
Rec1 {[%clk 0:00:28.8]} 36... Qf6 {[%clk 0:00:25.3]} 37. Ra7 {[%clk 0:00:27.1]}
37... h5 {[%clk 0:00:20.8]} 38. Qe1 {[%clk 0:00:23.9]} 38... g6 {[%clk
0:00:21.3]} 39. Rca1 {[%clk 0:00:24.6]} 39... Kg7 {[%clk 0:00:21.9]} 40. Rc7
{[%clk 0:00:25.3]} 40... Qe5 {[%clk 0:00:22.2]} 41. Raa7 {[%clk 0:00:25.8]}
41... Rf8 {[%clk 0:00:23.1]} 42. Qc1 {[%clk 0:00:23.6]} 42... h4 {[%clk
0:00:21.9]} 43. Qd2 {[%clk 0:00:23.3]} 43... g5 {[%clk 0:00:21.9]} 44. Qe3
{[%clk 0:00:23.1]} 44... Kg6 {[%clk 0:00:22.6]} 45. Rc6+ {[%clk 0:00:23.1]}
45... Kg7 {[%clk 0:00:22.8]} 46. Qd2 {[%clk 0:00:24.1]} 46... Rb8 {[%clk
0:00:18.3]} 47. Ra1 {[%clk 0:00:21.6]} 47... Rb1+ {[%clk 0:00:18.3]} 48. Rxb1
{[%clk 0:00:22.3]} 48... Bxb1 {[%clk 0:00:20.2]} 49. Rxc4 {[%clk 0:00:22.5]}
49... Bd3 {[%clk 0:00:21]} 50. Rd4 {[%clk 0:00:23.5]} 50... f6 {[%clk
0:00:18.2]} 51. Qe3 {[%clk 0:00:20.6]} 51... Kg6 {[%clk 0:00:17.5]} 52. Rxd3
{[%clk 0:00:19.9]} 52... exd3 {[%clk 0:00:19.4]} 53. Qxd3+ {[%clk 0:00:18.3]}
53... Kh6 {[%clk 0:00:20.4]} 54. Qd2 {[%clk 0:00:18.5]} 54... Qe4 {[%clk
0:00:20.4]} 55. Qc1 {[%clk 0:00:17]} 55... Qc4 {[%clk 0:00:21]} 56. Qe3 {[%clk
0:00:18.7]} 56... Qd5 {[%clk 0:00:20.3]} 57. Qd4 {[%clk 0:00:18.3]} 57... Qe6
{[%clk 0:00:17.7]} 58. c4 {[%clk 0:00:19.7]} 58... Kg6 {[%clk 0:00:18]} 59. c5
{[%clk 0:00:20.6]} 59... Qe1+ {[%clk 0:00:18.5]} 60. Kh2 {[%clk 0:00:21.6]}
60... Qc1 {[%clk 0:00:19.6]} 61. Qe4+ {[%clk 0:00:22]} 61... f5 {[%clk
0:00:19.9]} 62. Qe6+ {[%clk 0:00:23]} 62... Kh5 {[%clk 0:00:20.5]} 63. Qxf5
{[%clk 0:00:24]} 63... Kh6 {[%clk 0:00:20.8]} 64. Qf6+ {[%clk 0:00:22.8]} 64...
Kh5 {[%clk 0:00:21.3]} 65. c6 {[%clk 0:00:24.5]} 65... Qc5 {[%clk 0:00:20.7]}
66. Qf7+ {[%clk 0:00:21.9]} 66... Kh6 {[%clk 0:00:21.7]} 67. Qe6+ {[%clk
0:00:23.5]} 67... Kh5 {[%clk 0:00:22.5]} 68. Qg4+ {[%clk 0:00:23.6]} 68... Kh6
{[%clk 0:00:23.5]} 69. Qe4 {[%clk 0:00:25.3]} 69... Qxf2 {[%clk 0:00:23.4]} 70.
c7 {[%clk 0:00:24.1]} 70... Qg3+ {[%clk 0:00:24.5]} 71. Kg1 {[%clk 0:00:24.2]}
71... Qxc7 {[%clk 0:00:26.1]} 72. Qe6+ {[%clk 0:00:25.8]} 72... Kh5 {[%clk
0:00:27.4]} 1/2-1/2

[Event "*** Titled Tuesday Blitz"]
[Site "Chess.com"]
[Date "2018.10.02"]
[Round "2"]
[White "Morshynska"]
[Black "335394862"]
[Result "0-1"]
[WhiteElo "2080"]
[BlackElo "2337"]
[TimeControl "180+2"]
[EndTime "13:24:46 PDT"]
[Termination "335394862 won by resignation"]

1. d4 {[%clk 0:03:01.9]} 1... Nf6 {[%clk 0:03:00.6]} 2. c4 {[%clk 0:03:01.7]}
2... c5 {[%clk 0:03:00.8]} 3. e3 {[%clk 0:02:56.7]} 3... g6 {[%clk 0:02:57.6]}
4. Nf3 {[%clk 0:02:56.7]} 4... Bg7 {[%clk 0:02:57.3]} 5. Nc3 {[%clk 0:02:56.8]}
5... O-O {[%clk 0:02:58.3]} 6. Be2 {[%clk 0:02:56.1]} 6... b6 {[%clk 0:02:58.7]}
7. O-O {[%clk 0:02:56]} 7... d6 {[%clk 0:02:56.7]} 8. b3 {[%clk 0:02:55]} 8...
Bf5 {[%clk 0:02:56.1]} 9. Bb2 {[%clk 0:02:54.7]} 9... Ne4 {[%clk 0:02:57.3]} 10.
Nxe4 {[%clk 0:02:54.8]} 10... Bxe4 {[%clk 0:02:59.2]} 11. Ng5 {[%clk 0:02:51.9]}
11... Bb7 {[%clk 0:02:58.9]} 12. Bf3 {[%clk 0:02:52.5]} 12... Nc6 {[%clk
0:02:59.4]} 13. Ne4 {[%clk 0:02:42.1]} 13... Rc8 {[%clk 0:02:53.1]} 14. Qd2
{[%clk 0:02:41]} 14... a5 {[%clk 0:02:44.5]} 15. Nc3 {[%clk 0:02:28.4]} 15...
Ba8 {[%clk 0:02:17.5]} 16. Nb5 {[%clk 0:02:15.8]} 16... Qd7 {[%clk 0:01:55.5]}
17. Rfd1 {[%clk 0:02:03.6]} 17... Rfd8 {[%clk 0:01:53.2]} 18. Bc3 {[%clk
0:01:58.9]} 18... Nb4 {[%clk 0:01:44.7]} 19. Bxa8 {[%clk 0:01:56.7]} 19... Rxa8
{[%clk 0:01:46.6]} 20. a3 {[%clk 0:01:45.4]} 20... Nc6 {[%clk 0:01:45.8]} 21. d5
{[%clk 0:01:42]} 21... Bxc3 {[%clk 0:01:32.4]} 22. Qxc3 {[%clk 0:01:43.9]} 22...
Na7 {[%clk 0:01:26]} 23. Nxa7 {[%clk 0:01:40.7]} 23... Rxa7 {[%clk 0:01:27.5]}
24. a4 {[%clk 0:01:42.6]} 24... e5 {[%clk 0:01:17.8]} 25. dxe6 {[%clk 0:01:29]}
25... fxe6 {[%clk 0:01:13.4]} 26. e4 {[%clk 0:01:28.2]} 26... Qg7 {[%clk
0:01:04.4]} 27. Qg3 {[%clk 0:01:09.8]} 27... Rad7 {[%clk 0:00:59.7]} 28. Ra2
{[%clk 0:01:09.7]} 28... d5 {[%clk 0:00:48.9]} 29. exd5 {[%clk 0:00:53.9]} 29...
exd5 {[%clk 0:00:50.8]} 30. cxd5 {[%clk 0:00:49.7]} 30... Rxd5 {[%clk
0:00:52.7]} 31. Rxd5 {[%clk 0:00:34.6]} 31... Rxd5 {[%clk 0:00:54.6]} 32. h4
{[%clk 0:00:36]} 32... Qe5 {[%clk 0:00:46.1]} 33. Qxe5 {[%clk 0:00:32.5]} 33...
Rxe5 {[%clk 0:00:48]} 34. Rd2 {[%clk 0:00:31.8]} 34... Re4 {[%clk 0:00:34.8]}
35. Rd6 {[%clk 0:00:28.2]} 35... Rb4 {[%clk 0:00:28.7]} 36. Rd3 {[%clk
0:00:27.2]} 36... Rxh4 {[%clk 0:00:24.1]} 37. g3 {[%clk 0:00:26.6]} 37... Rb4
{[%clk 0:00:24.7]} 38. f4 {[%clk 0:00:27.1]} 38... c4 {[%clk 0:00:21.4]} 39.
bxc4 {[%clk 0:00:29]} 39... Rxc4 {[%clk 0:00:17.8]} 40. Rd8+ {[%clk 0:00:28.5]}
40... Kg7 {[%clk 0:00:16.9]} 41. Rb8 {[%clk 0:00:30.4]} 41... Rb4 {[%clk
0:00:16.9]} 42. Rb7+ {[%clk 0:00:31.7]} 42... Kf6 {[%clk 0:00:15.5]} 43. Kf2
{[%clk 0:00:33.6]} 43... h5 {[%clk 0:00:12.5]} 44. Kf3 {[%clk 0:00:33.8]} 44...
Rb3+ {[%clk 0:00:13.1]} 45. Ke4 {[%clk 0:00:34.1]} 45... Rb4+ {[%clk 0:00:13.5]}
46. Kd5 {[%clk 0:00:34.6]} 46... Kf5 {[%clk 0:00:11.8]} 47. Kc6 {[%clk
0:00:27.1]} 47... Kg4 {[%clk 0:00:08.5]} 48. Rg7 {[%clk 0:00:23.6]} 48... Kxg3
{[%clk 0:00:07.6]} 49. Rxg6+ {[%clk 0:00:24.6]} 49... Kxf4 {[%clk 0:00:08.7]}
50. Kb7 {[%clk 0:00:19.5]} 50... h4 {[%clk 0:00:07.5]} 51. Rh6 {[%clk
0:00:20.5]} 51... Kg3 {[%clk 0:00:08.5]} 52. Rg6+ {[%clk 0:00:21.3]} 52... Kf2
{[%clk 0:00:07.8]} 53. Rh6 {[%clk 0:00:21.9]} 53... Kg2 {[%clk 0:00:07.9]} 54.
Rg6+ {[%clk 0:00:22.5]} 54... Kh2 {[%clk 0:00:08.5]} 55. Ka6 {[%clk 0:00:20.1]}
55... h3 {[%clk 0:00:08.3]} 56. Rg7 {[%clk 0:00:20.8]} 56... Kh1 {[%clk
0:00:08]} 57. Rg6 {[%clk 0:00:20.7]} 57... Rb1 {[%clk 0:00:08.6]} 58. Ka7 {[%clk
0:00:19.4]} 58... Rb4 {[%clk 0:00:09.1]} 59. Ka6 {[%clk 0:00:19.8]} 59... Rxa4
{[%clk 0:00:08.4]} 60. Kxb6 {[%clk 0:00:20.5]} 60... Ra1 {[%clk 0:00:08.8]} 61.
Kb5 {[%clk 0:00:20.7]} 61... a4 {[%clk 0:00:10]} 62. Kb4 {[%clk 0:00:21.4]}
62... a3 {[%clk 0:00:10.4]} 63. Kb3 {[%clk 0:00:18.9]} 63... a2 {[%clk
0:00:11.5]} 64. Ka3 {[%clk 0:00:16.4]} 64... Rg1 {[%clk 0:00:08.5]} 65. Rxg1+
{[%clk 0:00:14.3]} 65... Kxg1 {[%clk 0:00:09.6]} 66. Kxa2 {[%clk 0:00:16.2]}
66... h2 {[%clk 0:00:11.1]} 67. Kb3 {[%clk 0:00:16.8]} 67... h1=Q {[%clk
0:00:13]} 68. Kc3 {[%clk 0:00:17.1]} 68... Qe4 {[%clk 0:00:13.9]} 0-1

[Event "*** Titled Tuesday Blitz"]
[Site "Chess.com"]
[Date "2018.10.02"]
[Round "2"]
[White "NeverEverForever1990"]
[Black "AnkitGajwa"]
[Result "0-1"]
[WhiteElo "2421"]
[BlackElo "2305"]
[TimeControl "180+2"]
[EndTime "13:25:12 PDT"]
[Termination "AnkitGajwa won by resignation"]

1. d4 {[%clk 0:03:01.9]} 1... d5 {[%clk 0:03:00.2]} 2. Nf3 {[%clk 0:02:59.5]}
2... Nf6 {[%clk 0:03:00.7]} 3. Bf4 {[%clk 0:03:00.3]} 3... Bf5 {[%clk
0:02:57.9]} 4. e3 {[%clk 0:03:01.5]} 4... c6 {[%clk 0:02:58.4]} 5. c4 {[%clk
0:03:02.2]} 5... Qb6 {[%clk 0:02:58.6]} 6. Qb3 {[%clk 0:02:56.2]} 6... e6 {[%clk
0:02:57.3]} 7. Nbd2 {[%clk 0:02:51.8]} 7... Nbd7 {[%clk 0:02:36.5]} 8. c5 {[%clk
0:02:48.7]} 8... Qxb3 {[%clk 0:02:36.5]} 9. axb3 {[%clk 0:02:50.6]} 9... a6
{[%clk 0:02:37.7]} 10. b4 {[%clk 0:02:50.9]} 10... Nh5 {[%clk 0:02:13.6]} 11.
Bg5 {[%clk 0:02:47.3]} 11... h6 {[%clk 0:02:13.7]} 12. Bh4 {[%clk 0:02:48.2]}
12... g5 {[%clk 0:02:14.5]} 13. Bg3 {[%clk 0:02:49.4]} 13... Nxg3 {[%clk
0:02:15.8]} 14. hxg3 {[%clk 0:02:51.3]} 14... Bg7 {[%clk 0:02:09.5]} 15. b5
{[%clk 0:02:47.9]} 15... cxb5 {[%clk 0:02:10.2]} 16. Bxb5 {[%clk 0:02:48.3]}
16... Ke7 {[%clk 0:02:11.1]} 17. Ba4 {[%clk 0:02:44.6]} 17... Rac8 {[%clk
0:01:50.7]} 18. b4 {[%clk 0:02:34.5]} 18... Nb8 {[%clk 0:01:47.9]} 19. Ke2
{[%clk 0:02:28.9]} 19... Nc6 {[%clk 0:01:48.1]} 20. Bxc6 {[%clk 0:02:29]} 20...
Rxc6 {[%clk 0:01:47.3]} 21. Nb3 {[%clk 0:02:27]} 21... Rb8 {[%clk 0:01:36.1]}
22. Na5 {[%clk 0:02:17.1]} 22... Rcc8 {[%clk 0:01:37]} 23. Rhc1 {[%clk
0:02:18.4]} 23... Kd7 {[%clk 0:01:27.5]} 24. Ne5+ {[%clk 0:02:17.8]} 24... Bxe5
{[%clk 0:01:21.2]} 25. dxe5 {[%clk 0:02:19.7]} 25... h5 {[%clk 0:01:13.1]} 26.
Nb3 {[%clk 0:02:15.2]} 26... h4 {[%clk 0:01:09.5]} 27. gxh4 {[%clk 0:02:15.7]}
27... gxh4 {[%clk 0:01:10.2]} 28. Nd4 {[%clk 0:02:17.6]} 28... Be4 {[%clk
0:01:10.9]} 29. f3 {[%clk 0:02:17.5]} 29... Bg6 {[%clk 0:01:11.3]} 30. Kf2
{[%clk 0:02:00.6]} 30... f6 {[%clk 0:01:10]} 31. exf6 {[%clk 0:01:56.9]} 31...
e5 {[%clk 0:01:11.1]} 32. Nb3 {[%clk 0:01:54.8]} 32... Rf8 {[%clk 0:01:09.7]}
33. c6+ {[%clk 0:01:49]} 33... bxc6 {[%clk 0:01:08.9]} 34. Nc5+ {[%clk
0:01:50.2]} 34... Kd6 {[%clk 0:01:00.4]} 35. Rxa6 {[%clk 0:01:50.7]} 35... Rxb4
{[%clk 0:00:58]} 36. Ra7 {[%clk 0:01:46.4]} 36... Rb2+ {[%clk 0:00:56.3]} 37.
Kg1 {[%clk 0:01:45.8]} 37... Rc2 {[%clk 0:00:39]} 38. Nb7+ {[%clk 0:01:45.1]}
38... Ke6 {[%clk 0:00:34.7]} 39. Nc5+ {[%clk 0:01:34.2]} 39... Kd6 {[%clk
0:00:29.4]} 40. Nb7+ {[%clk 0:01:34.9]} 40... Kc7 {[%clk 0:00:26.5]} 41. Rca1
{[%clk 0:01:36.8]} 41... Rxf6 {[%clk 0:00:21.3]} 42. Nc5+ {[%clk 0:01:33.2]}
42... Kd6 {[%clk 0:00:21.8]} 43. Nb7+ {[%clk 0:01:32.3]} 43... Ke6 {[%clk
0:00:17.6]} 44. Nd8+ {[%clk 0:01:29.1]} 44... Kf5 {[%clk 0:00:18.4]} 45. Re7
{[%clk 0:00:57.9]} 45... d4 {[%clk 0:00:17.9]} 46. exd4 {[%clk 0:00:52.4]} 46...
exd4 {[%clk 0:00:18.8]} 47. Rae1 {[%clk 0:00:53.4]} 47... d3 {[%clk 0:00:13.8]}
48. R7e5+ {[%clk 0:00:27.2]} 48... Kf4 {[%clk 0:00:14.5]} 49. Ne6+ {[%clk
0:00:27.2]} 49... Rxe6 {[%clk 0:00:12.3]} 50. Rxe6 {[%clk 0:00:28.3]} 50... Bf5
{[%clk 0:00:12.5]} 51. Rd6 {[%clk 0:00:27]} 51... Kg3 {[%clk 0:00:12.2]} 52. Kf1
{[%clk 0:00:21.2]} 52... Rf2+ {[%clk 0:00:12.6]} 53. Kg1 {[%clk 0:00:22]} 53...
Rxg2+ {[%clk 0:00:13.9]} 54. Kh1 {[%clk 0:00:23.4]} 54... Rh2+ {[%clk
0:00:15.1]} 55. Kg1 {[%clk 0:00:24.5]} 55... Rg2+ {[%clk 0:00:16.2]} 56. Kh1
{[%clk 0:00:25.7]} 56... Re2 {[%clk 0:00:11.5]} 57. Rg1+ {[%clk 0:00:24.9]}
57... Kxf3 {[%clk 0:00:12.3]} 58. Rf1+ {[%clk 0:00:25.1]} 58... Rf2 {[%clk
0:00:11.6]} 59. Rxf2+ {[%clk 0:00:25.9]} 59... Kxf2 {[%clk 0:00:12.9]} 60. Rf6
{[%clk 0:00:27.3]} 60... d2 {[%clk 0:00:14.4]} 61. Rxf5+ {[%clk 0:00:28.6]}
61... Ke3 {[%clk 0:00:13.8]} 62. Rf1 {[%clk 0:00:22.2]} 62... Ke2 {[%clk
0:00:14.7]} 63. Kg2 {[%clk 0:00:23.7]} 63... d1=Q {[%clk 0:00:15.5]} 64. Rxd1
{[%clk 0:00:25.2]} 64... Kxd1 {[%clk 0:00:16.9]} 65. Kh3 {[%clk 0:00:27.1]}
65... c5 {[%clk 0:00:17.4]} 66. Kxh4 {[%clk 0:00:27.9]} 66... c4 {[%clk
0:00:18.8]} 67. Kg4 {[%clk 0:00:29.3]} 67... c3 {[%clk 0:00:20.1]} 68. Kf3
{[%clk 0:00:31.2]} 0-1